fUST/lending_fUST_20241001
["ID","MTS","AMOUNT","RATE_DAILY","PERIOD"]
[339605387,1727733040796,-8838.08947255,0.0001499,2]
[339605388,1727733040808,-28623.13370733,0.0001499,2]
[339605419,1727733043677,-103945.67210121,0.0001499,2]
[339605452,1727734231863,-359.774908,0.00013151,2]
[339605453,1727734231874,-80.74111788,0.00013699,2]
[339605454,1727734231957,-85.92554812,0.00013699,2]
[339605455,1727734231967,-164.636862,0.00013764,2]
[339605456,1727734231977,-32.87409335,0.00014019,2]
[339605488,1727734239818,-133.79257265,0.00014019,2]
[339605489,1727734239828,-166.666666,0.0001434,2]
[339605490,1727734239839,-525.0,0.00014632,2]
[339605491,1727734239849,-27.03249617,0.00014632,2]
[339605492,1727734239908,-1189.96750383,0.00014632,2]
[339605493,1727734239918,-5281.82803103,0.00014639,2]
[339605494,1727734239931,-1611.7584797,0.00014639,2]
[339605495,1727734239941,-166.666666,0.0001466,2]
[339605496,1727734239950,-1312.07,0.000147,2]
[339605497,1727734239960,-300.0,0.00014732,2]
[339605498,1727734239970,-300.0,0.00014732,2]
[339605499,1727734239982,-487.76485252,0.0001488,2]
[339605524,1727734929920,168.04,0.00012,10]
[339605527,1727735321332,30000.0,0.0001,2]
[339605552,1727735432051,-631.83,0.00010959,2]
[339605553,1727735432062,-500.0,0.00013031,2]
[339605554,1727735432072,-346.058754,0.00013151,2]
[339605555,1727735432082,-447.8692694,0.0001325,2]
[339605556,1727735432091,-160.1169195,0.00013569,2]
[339605557,1727735432101,-166.666666,0.00013699,2]
[339605558,1727735432111,-166.666666,0.00014019,2]
[339605560,1727735432121,-129.30770284,0.0001434,2]
[339605674,1727735438220,-37.35896316,0.0001434,2]
[339605676,1727735438230,-166.666666,0.0001466,2]
[339605678,1727735438240,-1912.11968808,0.00014677,2]
[339605680,1727735438252,-1210.00000001,0.00014677,2]
[339605883,1727735442541,-452.85797298,0.00014677,2]
[339605884,1727735442551,-1180.86,0.000147,2]
[339605885,1727735442560,-300.0,0.0001475,2]
[339605886,1727735442569,-525.0,0.00014751,2]
[339605887,1727735442579,-1217.0,0.00014751,2]
[339605888,1727735442589,-10839.61307367,0.0001479,2]
[339605889,1727735442598,-3572.04224974,0.0001479,2]
[339605890,1727735442608,-150.0,0.00014844,2]
[339605891,1727735442618,-1035.783,0.00014877,2]
[339605892,1727735442627,-1000.0,0.0001488,2]
[339605893,1727735442637,-1500.0,0.000149,2]
[339605894,1727735442647,-500.0,0.00014973,2]
[339605896,1727735442656,-488.18091068,0.00014973,2]
[339605898,1727735442666,-197.9503916,0.00014973,2]
[339605901,1727735442676,-500.0,0.00014973,2]
[339605904,1727735442686,-500.0,0.00014973,2]
[339605907,1727735442695,-500.0,0.00014973,2]
[339605910,1727735442705,-500.0,0.00014973,2]
[339605913,1727735442715,-20428.44000908,0.00014979,2]
[339605916,1727735442725,-52167.670803,0.00014979,2]
[339605919,1727735442734,-1750.94065226,0.00014979,2]
[339605923,1727735442745,-500.0,0.00014979,2]
[339605926,1727735442755,-500.0,0.00014979,2]
[339605929,1727735442764,-152.90855371,0.00014979,2]
[339605932,1727735442774,-1559.4347376,0.0001498,2]
[339605933,1727735442783,-54313.16557347,0.0001498,2]
[339605964,1727735443154,-933.4792192,0.0001498,2]
[339606084,1727735446068,-1022.12551638,0.0001498,2]
[339606086,1727735446080,-953.012298,0.0001498,2]
[339606088,1727735446091,-309.30294729,0.0001498,2]
[339606091,1727735446103,-16259.92562486,0.0001498,2]
[339606366,1727736638459,-346.058754,0.00013151,2]
[339606368,1727736638469,-166.666666,0.00013699,2]
[339606370,1727736638481,-166.666666,0.00014028,2]
[339606372,1727736638490,-166.666666,0.00014356,2]
[339606374,1727736638500,-166.666666,0.00014685,2]
[339606376,1727736638510,-1062.77,0.000147,2]
[339606378,1727736638520,-3999.71100836,0.00014786,2]
[339606381,1727736638531,-300.0,0.00014867,2]
[339606383,1727736638540,-300.0,0.00014867,2]
[339606385,1727736638550,-525.0,0.00014868,2]
[339606387,1727736638560,-1217.0,0.00014868,2]
[339606389,1727736638569,-1000.0,0.0001488,2]
[339606391,1727736638579,-60000.0,0.0001495,2]
[339606392,1727736638588,-160.0,0.00014965,5]
[339606394,1727736638598,-5891.1691139,0.0001497,2]
[339606397,1727736638607,-45869.7367039,0.0001497,2]
[339606399,1727736638617,-1663.39361968,0.0001497,2]
[339606401,1727736638627,-5419.80653684,0.0001497,2]
[339606403,1727736638636,-10214.22000454,0.0001497,2]
[339606405,1727736638646,-137609.210112,0.0001497,2]
[339606407,1727736638656,-4990.18085904,0.0001497,2]
[339606409,1727736638665,-585.20077211,0.00014973,2]
[339606411,1727736638676,-519.3136973,0.00014973,2]
[339606412,1727736638689,-500.0,0.00014973,2]
[339606414,1727736638699,-500.0,0.00014973,2]
[339606416,1727736638708,-647.82269529,0.00014973,2]
[339606418,1727736638717,-500.0,0.00014973,2]
[339606420,1727736638727,-500.0,0.00014979,2]
[339606421,1727736638736,-500.0,0.00014979,2]
[339606423,1727736638746,-500.0,0.00014979,2]
[339606426,1727736638756,-179.8773037,0.00014979,2]
[339606428,1727736638765,-500.0,0.00014979,2]
[339606429,1727736638775,-233.79255796,0.00014979,2]
[339606432,1727736638784,-319.27400599,0.00014979,2]
[339606434,1727736638795,-500.0,0.00014979,2]
[339606436,1727736638804,-500.0,0.00014979,2]
[339606438,1727736638814,-500.0,0.00014979,2]
[339606440,1727736638826,-500.0,0.00014979,2]
[339606442,1727736638836,-500.0,0.00014979,2]
[339606444,1727736638846,-500.0,0.00014979,2]
[339606446,1727736638855,-500.0,0.00014979,2]
[339606448,1727736638865,-500.0,0.00014979,2]
[339606450,1727736638875,-500.0,0.00014979,2]
[339606452,1727736638885,-393.31504868,0.00014979,2]
[339606454,1727736638895,-151.0,0.0001498,2]
[339606456,1727736638905,-151.0,0.0001498,2]
[339606458,1727736638916,-151.0,0.0001498,2]
[339606460,1727736638927,-151.0,0.0001498,2]
[339606462,1727736638937,-151.0,0.0001498,2]
[339606464,1727736638947,-151.0,0.0001498,2]
[339606466,1727736638957,-1689.367696,0.0001498,2]
[339606468,1727736638967,-151.0,0.0001498,2]
[339606470,1727736638977,-1060.09855,0.0001498,2]
[339606472,1727736638989,-1689.367696,0.0001498,2]
[339606475,1727736638998,-1060.09855,0.0001498,2]
[339606477,1727736639009,-312.657883,0.0001498,2]
[339606479,1727736639019,-312.657883,0.0001498,2]
[339606481,1727736639029,-214.78661,0.0001498,2]
[339606483,1727736639040,-151.0,0.0001498,2]
[339606484,1727736639050,-151.0,0.0001498,2]
[339606486,1727736639060,-829.388173,0.0001498,2]
[339606489,1727736639070,-151.0,0.0001498,2]
[339606491,1727736639079,-829.388173,0.0001498,2]
[339606492,1727736639089,-151.0,0.0001498,2]
[339606494,1727736639099,-151.0,0.0001498,2]
[339606496,1727736639111,-1129.464048,0.0001498,2]
[339606498,1727736639121,-151.0,0.0001498,2]
[339606500,1727736639131,-1129.464048,0.0001498,2]
[339606502,1727736639141,-607.438986,0.0001498,2]
[339606504,1727736639150,-732.790281,0.0001498,2]
[339606506,1727736639160,-732.790281,0.0001498,2]
[339606509,1727736639170,-259.045728,0.0001498,2]
[339606511,1727736639179,-259.045728,0.0001498,2]
[339606513,1727736639189,-151.0,0.0001498,2]
[339606515,1727736639200,-151.0,0.0001498,2]
[339606517,1727736639209,-585.569063,0.0001498,2]
[339606519,1727736639220,-585.569063,0.0001498,2]
[339606521,1727736639230,-657.712966,0.0001498,2]
[339606523,1727736639240,-657.712966,0.0001498,2]
[339606525,1727736639250,-151.0,0.0001498,2]
[339606527,1727736639260,-151.0,0.0001498,2]
[339606529,1727736639270,-151.0,0.0001498,2]
[339606531,1727736639282,-151.0,0.0001498,2]
[339606533,1727736639292,-151.0,0.0001498,2]
[339606535,1727736639301,-151.0,0.0001498,2]
[339606537,1727736639312,-151.0,0.0001498,2]
[339606539,1727736639321,-151.0,0.0001498,2]
[339606541,1727736639332,-151.0,0.0001498,2]
[339606543,1727736639341,-151.0,0.0001498,2]
[339606545,1727736639353,-151.0,0.0001498,2]
[339606547,1727736639363,-151.0,0.0001498,2]
[339606549,1727736639373,-187.162806,0.0001498,2]
[339606551,1727736639383,-187.162806,0.0001498,2]
[339606553,1727736639393,-378.26039,0.0001498,2]
[339606555,1727736639403,-378.26039,0.0001498,2]
[339606558,1727736639414,-151.0,0.0001498,2]
[339606559,1727736639425,-151.0,0.0001498,2]
[339606562,1727736639437,-187.162806,0.0001498,2]
[339606563,1727736639447,-187.162806,0.0001498,2]
[339606565,1727736639457,-378.26039,0.0001498,2]
[339606567,1727736639466,-378.26039,0.0001498,2]
[339606569,1727736639476,-151.0,0.0001498,2]
[339606571,1727736639486,-151.0,0.0001498,2]
[339606573,1727736639496,-151.0,0.0001498,2]
[339606574,1727736639505,-151.0,0.0001498,2]
[339606575,1727736639515,-151.0,0.0001498,2]
[339606576,1727736639525,-151.0,0.0001498,2]
[339606577,1727736639534,-174.695356,0.0001498,2]
[339606578,1727736639544,-174.695356,0.0001498,2]
[339606579,1727736639553,-151.0,0.0001498,2]
[339606580,1727736639563,-151.0,0.0001498,2]
[339606581,1727736639572,-174.695356,0.0001498,2]
[339606582,1727736639582,-174.695356,0.0001498,2]
[339606583,1727736639592,-151.0,0.0001498,2]
[339606584,1727736639602,-151.0,0.0001498,2]
[339606585,1727736639612,-151.0,0.0001498,2]
[339606586,1727736639622,-151.0,0.0001498,2]
[339606587,1727736639632,-151.0,0.0001498,2]
[339606588,1727736639641,-151.0,0.0001498,2]
[339606589,1727736639650,-151.0,0.0001498,2]
[339606590,1727736639660,-266.4817,0.0001498,2]
[339606591,1727736639669,-151.0,0.0001498,2]
[339606592,1727736639681,-215.864732,0.0001498,2]
[339606593,1727736639692,-235.708885,0.0001498,2]
[339606594,1727736639701,-235.708885,0.0001498,2]
[339606595,1727736639712,-235.708885,0.0001498,2]
[339606596,1727736639722,-151.0,0.0001498,2]
[339606597,1727736639732,-235.708885,0.0001498,2]
[339606598,1727736639741,-151.0,0.0001498,2]
[339606599,1727736639752,-151.0,0.0001498,2]
[339606600,1727736639762,-1126.444943,0.0001498,2]
[339606601,1727736639772,-1126.444943,0.0001498,2]
[339606602,1727736639782,-1126.444943,0.0001498,2]
[339606603,1727736639792,-1126.444943,0.0001498,2]
[339606604,1727736639802,-1126.444943,0.0001498,2]
[339606605,1727736639811,-1126.444943,0.0001498,2]
[339606606,1727736639821,-213.896278,0.0001498,2]
[339606607,1727736639831,-213.896278,0.0001498,2]
[339606608,1727736639841,-213.896278,0.0001498,2]
[339606609,1727736639850,-213.896278,0.0001498,2]
[339606610,1727736639860,-213.896278,0.0001498,2]
[339606611,1727736639870,-213.896278,0.0001498,2]
[339606612,1727736639879,-213.896278,0.0001498,2]
[339606613,1727736639889,-213.896278,0.0001498,2]
[339606614,1727736639898,-464.879242,0.0001498,2]
[339606615,1727736639908,-464.879242,0.0001498,2]
[339606616,1727736639918,-464.879242,0.0001498,2]
[339606618,1727736639929,-464.879242,0.0001498,2]
[339606620,1727736639939,-151.0,0.0001498,2]
[339606621,1727736639949,-151.0,0.0001498,2]
[339606622,1727736639959,-464.879242,0.0001498,2]
[339606623,1727736639969,-464.879242,0.0001498,2]
[339606624,1727736639978,-151.0,0.0001498,2]
[339606625,1727736639987,-464.879242,0.0001498,2]
[339606626,1727736639997,-151.0,0.0001498,2]
[339606627,1727736640007,-464.879242,0.0001498,2]
[339606628,1727736640017,-151.0,0.0001498,2]
[339606629,1727736640027,-151.0,0.0001498,2]
[339606630,1727736640036,-151.0,0.0001498,2]
[339606631,1727736640046,-151.0,0.0001498,2]
[339606632,1727736640056,-151.0,0.0001498,2]
[339606633,1727736640065,-648.800009,0.0001498,2]
[339606634,1727736640074,-151.0,0.0001498,2]
[339606635,1727736640085,-648.800009,0.0001498,2]
[339606636,1727736640095,-151.0,0.0001498,2]
[339606637,1727736640104,-648.800009,0.0001498,2]
[339606638,1727736640114,-151.0,0.0001498,2]
[339606640,1727736640124,-648.800009,0.0001498,2]
[339606641,1727736640133,-151.0,0.0001498,2]
[339606642,1727736640143,-648.800009,0.0001498,2]
[339606643,1727736640152,-151.0,0.0001498,2]
[339606644,1727736640162,-648.800009,0.0001498,2]
[339606645,1727736640172,-151.0,0.0001498,2]
[339606646,1727736640181,-648.800009,0.0001498,2]
[339606647,1727736640190,-162.430967,0.0001498,2]
[339606648,1727736640199,-648.800009,0.0001498,2]
[339606649,1727736640209,-1627.365574,0.0001498,2]
[339606650,1727736640218,-1627.365574,0.0001498,2]
[339606651,1727736640228,-1627.365574,0.0001498,2]
[339606652,1727736640237,-1627.365574,0.0001498,2]
[339606653,1727736640247,-1627.365574,0.0001498,2]
[339606654,1727736640256,-555.94589056,0.0001498,2]
[339606655,1727736640288,-1071.41968344,0.0001498,2]
[339606656,1727736640298,-1627.365574,0.0001498,2]
[339606657,1727736640307,-1627.365574,0.0001498,2]
[339606658,1727736640316,-16513.02924219,0.0001498,2]
[339606659,1727736640328,-6032.5,0.0001498,2]
[339606660,1727736640343,-3430.43544729,0.0001498,2]
[339606738,1727736646311,-251.589175,0.0001498,2]
[339606739,1727736646323,-251.589175,0.0001498,2]
[339606740,1727736646332,-251.589175,0.0001498,2]
[339606741,1727736646342,-251.589175,0.0001498,2]
[339606742,1727736646353,-65763.50871832,0.0001498,2]
[339606743,1727736646363,-14970.5425771,0.0001498,2]
[339606744,1727736646372,-1624.10452708,0.00014989,2]
[339606745,1727736646382,-21.43392681,0.0001499,2]
[339606790,1727737832543,-346.058753,0.00013151,2]
[339606792,1727737832553,-171.978545,0.00013699,2]
[339606794,1727737832564,-310.17095859,0.00013699,2]
[339606863,1727737838676,-160.91699081,0.00013699,2]
[339606864,1727737838686,-195.43062,0.00013726,2]
[339606865,1727737838696,-171.978545,0.00014119,2]
[339606866,1727737838707,-171.978545,0.0001454,2]
[339606867,1727737838716,-956.5,0.000147,2]
[339606868,1727737838726,-300.0,0.00014849,2]
[339606869,1727737838735,-300.0,0.00014849,2]
[339606870,1727737838745,-1217.31991013,0.0001485,2]
[339606876,1727737840494,-1964.18570187,0.0001485,2]
[339606886,1727737845692,-3113.77244737,0.0001485,2]
[339606905,1727737846767,-250.0,0.0001485,2]
[339606907,1727737846779,-968.87670753,0.0001485,2]
[339606909,1727737846789,-171.978545,0.00014961,2]
[339606911,1727737846800,-32515.4001256,0.0001497,2]
[339606912,1727737846810,-21077.72020794,0.0001497,2]
[339606913,1727737846826,-4881.68865733,0.0001497,2]
[339606977,1727739031797,-346.058754,0.00013151,2]
[339606979,1727739031807,-171.978545,0.00013699,2]
[339606981,1727739031816,-1382.9474671,0.000146,2]
[339607201,1727739042912,-518.037299,0.000146,2]
[339607203,1727739042922,-300.0,0.00014699,2]
[339607205,1727739042931,-860.85,0.000147,2]
[339607207,1727739042940,-3125.53696847,0.000147,2]
[339607209,1727739042949,-2709.90326842,0.0001479,2]
[339607211,1727739042959,-5107.11000227,0.0001479,2]
[339607213,1727739042968,-91397.1245141,0.0001479,2]
[339607215,1727739042977,-95499.24287853,0.000148,2]
[339607217,1727739042987,-45698.5622571,0.0001495,2]
[339607219,1727739042996,-573.49180419,0.00014959,2]
[339607221,1727739043005,-500.0,0.00014959,2]
[339607223,1727739043014,-209.72231432,0.00014959,2]
[339607225,1727739043024,-500.0,0.00014959,2]
[339607226,1727739043033,-513.65479058,0.00014959,2]
[339607228,1727739043042,-500.0,0.00014959,2]
[339607230,1727739043051,-500.0,0.00014959,2]
[339607232,1727739043061,-500.0,0.00014959,2]
[339607234,1727739043069,-500.0,0.00014959,2]
[339607236,1727739043079,-500.0,0.00014959,2]
[339607238,1727739043091,-500.0,0.00014959,2]
[339607240,1727739043100,-607.438986,0.0001496,2]
[339607242,1727739043109,-607.438986,0.0001496,2]
[339607244,1727739043118,-151.0,0.0001496,2]
[339607247,1727739043128,-151.0,0.0001496,2]
[339607249,1727739043137,-200.352552,0.0001496,2]
[339607251,1727739043146,-200.352552,0.0001496,2]
[339607253,1727739043155,-788.51146,0.0001496,2]
[339607255,1727739043164,-788.51146,0.0001496,2]
[339607256,1727739043173,-45698.5622571,0.0001496,2]
[339607258,1727739043182,-137095.686771,0.0001496,2]
[339607260,1727739043191,-607.438986,0.00014961,2]
[339607262,1727739043200,-607.438986,0.00014961,2]
[339607264,1727739043210,-151.0,0.00014961,2]
[339607267,1727739043219,-151.0,0.00014961,2]
[339607269,1727739043229,-200.352552,0.00014961,2]
[339607271,1727739043238,-200.352552,0.00014961,2]
[339607273,1727739043248,-788.51146,0.00014961,2]
[339607275,1727739043257,-788.51146,0.00014961,2]
[339607277,1727739043266,-954.088694,0.0001497,2]
[339607279,1727739043275,-954.088694,0.0001497,2]
[339607281,1727739043285,-151.0,0.0001497,2]
[339607283,1727739043295,-151.0,0.0001497,2]
[339607285,1727739043311,-151.0,0.0001497,2]
[339607287,1727739043320,-151.0,0.0001497,2]
[339607289,1727739043329,-151.0,0.0001497,2]
[339607291,1727739043338,-151.0,0.0001497,2]
[339607293,1727739043347,-151.0,0.0001497,2]
[339607295,1727739043356,-151.0,0.0001497,2]
[339607297,1727739043365,-151.0,0.0001497,2]
[339607299,1727739043376,-151.0,0.0001497,2]
[339607301,1727739043385,-151.0,0.0001497,2]
[339607303,1727739043394,-197.478066,0.0001497,2]
[339607305,1727739043404,-151.0,0.0001497,2]
[339607307,1727739043413,-151.0,0.0001497,2]
[339607309,1727739043422,-151.0,0.0001497,2]
[339607311,1727739043431,-151.0,0.0001497,2]
[339607312,1727739043440,-151.0,0.0001497,2]
[339607314,1727739043449,-207.537904,0.0001497,2]
[339607316,1727739043459,-151.0,0.0001497,2]
[339607319,1727739043468,-151.0,0.0001497,2]
[339607321,1727739043478,-259.86939,0.0001497,2]
[339607322,1727739043487,-1016.517643,0.0001497,2]
[339607324,1727739043497,-151.0,0.0001497,2]
[339607326,1727739043506,-1016.517643,0.0001497,2]
[339607328,1727739043516,-1411.058033,0.0001497,2]
[339607330,1727739043525,-1411.058033,0.0001497,2]
[339607332,1727739043535,-1411.058033,0.0001497,2]
[339607334,1727739043546,-1411.058033,0.0001497,2]
[339607336,1727739043556,-151.0,0.0001497,2]
[339607338,1727739043565,-151.0,0.0001497,2]
[339607340,1727739043574,-204.04728,0.0001497,2]
[339607342,1727739043583,-204.04728,0.0001497,2]
[339607344,1727739043593,-204.04728,0.0001497,2]
[339607346,1727739043602,-204.04728,0.0001497,2]
[339607348,1727739043612,-659.511252,0.0001497,2]
[339607350,1727739043621,-151.0,0.0001497,2]
[339607352,1727739043631,-151.0,0.0001497,2]
[339607354,1727739043640,-659.511252,0.0001497,2]
[339607356,1727739043649,-527.012156,0.0001497,2]
[339607358,1727739043659,-527.012156,0.0001497,2]
[339607360,1727739043668,-527.012156,0.0001497,2]
[339607362,1727739043678,-527.012156,0.0001497,2]
[339607364,1727739043687,-151.0,0.0001497,2]
[339607366,1727739043696,-151.0,0.0001497,2]
[339607368,1727739043705,-151.0,0.0001497,2]
[339607370,1727739043715,-151.0,0.0001497,2]
[339607372,1727739043724,-151.0,0.0001497,2]
[339607374,1727739043733,-151.0,0.0001497,2]
[339607376,1727739043742,-151.0,0.0001497,2]
[339607378,1727739043751,-151.0,0.0001497,2]
[339607380,1727739043760,-371.903394,0.0001497,2]
[339607382,1727739043770,-371.903394,0.0001497,2]
[339607384,1727739043781,-151.0,0.0001497,2]
[339607386,1727739043790,-151.0,0.0001497,2]
[339607388,1727739043800,-371.903394,0.0001497,2]
[339607390,1727739043810,-371.903394,0.0001497,2]
[339607392,1727739043820,-151.0,0.0001497,2]
[339607394,1727739043829,-151.0,0.0001497,2]
[339607396,1727739043838,-151.0,0.0001497,2]
[339607398,1727739043847,-151.0,0.0001497,2]
[339607400,1727739043857,-591.941669,0.0001497,2]
[339607402,1727739043866,-591.941669,0.0001497,2]
[339607404,1727739043875,-591.941669,0.0001497,2]
[339607406,1727739043885,-591.941669,0.0001497,2]
[339607408,1727739043894,-746.449356,0.0001497,2]
[339607410,1727739043904,-746.449356,0.0001497,2]
[339607429,1727739044087,-746.449356,0.0001497,2]
[339607431,1727739044097,-746.449356,0.0001497,2]
[339607433,1727739044107,-151.0,0.0001497,2]
[339607435,1727739044117,-151.0,0.0001497,2]
[339607438,1727739044126,-151.0,0.0001497,2]
[339607439,1727739044136,-151.0,0.0001497,2]
[339607441,1727739044145,-151.0,0.0001497,2]
[339607443,1727739044155,-151.0,0.0001497,2]
[339607445,1727739044165,-648.800009,0.0001497,2]
[339607447,1727739044174,-648.800009,0.0001497,2]
[339607449,1727739044184,-302.608312,0.0001497,2]
[339607451,1727739044193,-302.608312,0.0001497,2]
[339607453,1727739044203,-648.800009,0.0001497,2]
[339607455,1727739044216,-648.800009,0.0001497,2]
[339607457,1727739044227,-302.608312,0.0001497,2]
[339607459,1727739044236,-302.608312,0.0001497,2]
[339607461,1727739044246,-246.093441,0.0001497,2]
[339607463,1727739044255,-246.093441,0.0001497,2]
[339607465,1727739044265,-246.093441,0.0001497,2]
[339607467,1727739044275,-246.093441,0.0001497,2]
[339607469,1727739044284,-151.0,0.0001497,2]
[339607470,1727739044296,-151.0,0.0001497,2]
[339607472,1727739044305,-151.0,0.0001497,2]
[339607474,1727739044315,-1520.430926,0.0001497,2]
[339607476,1727739044324,-151.0,0.0001497,2]
[339607478,1727739044334,-1520.430926,0.0001497,2]
[339607480,1727739044343,-1520.430926,0.0001497,2]
[339607482,1727739044353,-1520.430926,0.0001497,2]
[339607484,1727739044362,-151.0,0.0001497,2]
[339607486,1727739044372,-151.0,0.0001497,2]
[339607488,1727739044381,-151.0,0.0001497,2]
[339607490,1727739044391,-151.0,0.0001497,2]
[339607492,1727739044401,-151.0,0.0001497,2]
[339607494,1727739044410,-674.41742,0.0001497,2]
[339607496,1727739044419,-674.41742,0.0001497,2]
[339607497,1727739044429,-151.0,0.0001497,2]
[339607499,1727739044439,-151.0,0.0001497,2]
[339607502,1727739044448,-233.024396,0.0001497,2]
[339607503,1727739044458,-674.41742,0.0001497,2]
[339607505,1727739044467,-674.41742,0.0001497,2]
[339607507,1727739044477,-233.024396,0.0001497,2]
[339607509,1727739044487,-173.364171,0.0001497,2]
[339607510,1727739044496,-173.364171,0.0001497,2]
[339607511,1727739044506,-173.364171,0.0001497,2]
[339607512,1727739044515,-173.364171,0.0001497,2]
[339607513,1727739044525,-607.438986,0.0001497,2]
[339607514,1727739044535,-607.438986,0.0001497,2]
[339607515,1727739044546,-151.0,0.0001497,2]
[339607516,1727739044556,-151.0,0.0001497,2]
[339607517,1727739044566,-200.352552,0.0001497,2]
[339607518,1727739044576,-200.352552,0.0001497,2]
[339607519,1727739044586,-788.51146,0.0001497,2]
[339607520,1727739044596,-788.51146,0.0001497,2]
[339607521,1727739044605,-500.0,0.00014973,2]
[339607522,1727739044614,-500.0,0.00014973,2]
[339607523,1727739044624,-500.0,0.00014973,2]
[339607524,1727739044634,-500.0,0.00014973,2]
[339607525,1727739044645,-151.0,0.00014979,2]
[339607526,1727739044655,-151.0,0.00014979,2]
[339607527,1727739044664,-151.0,0.00014979,2]
[339607528,1727739044674,-151.0,0.00014979,2]
[339607529,1727739044683,-151.0,0.00014979,2]
[339607530,1727739044693,-151.0,0.00014979,2]
[339607531,1727739044703,-151.0,0.00014979,2]
[339607532,1727739044713,-407.789725,0.00014979,2]
[339607533,1727739044723,-407.789725,0.00014979,2]
[339607534,1727739044733,-407.789725,0.00014979,2]
[339607535,1727739044743,-407.789725,0.00014979,2]
[339607536,1727739044752,-151.0,0.0001498,2]
[339607537,1727739044762,-261.827964,0.0001498,2]
[339607538,1727739044772,-151.0,0.0001498,2]
[339607539,1727739044781,-151.0,0.0001498,2]
[339607540,1727739044791,-151.0,0.0001498,2]
[339607541,1727739044801,-151.0,0.0001498,2]
[339607542,1727739044811,-162.430967,0.0001498,2]
[339607543,1727739044820,-151.0,0.0001498,2]
[339607544,1727739044829,-151.0,0.0001498,2]
[339607545,1727739044839,-407.789725,0.0001498,2]
[339607546,1727739044849,-407.789725,0.0001498,2]
[339607547,1727739044859,-407.789725,0.0001498,2]
[339607548,1727739044869,-407.789725,0.0001498,2]
[339607549,1727739044879,-151.0,0.0001498,2]
[339607550,1727739044889,-954.088694,0.0001498,2]
[339607551,1727739044898,-954.088694,0.0001498,2]
[339607552,1727739044908,-954.088694,0.0001498,2]
[339607553,1727739044917,-954.088694,0.0001498,2]
[339607554,1727739044926,-151.0,0.0001498,2]
[339607555,1727739044936,-151.0,0.0001498,2]
[339607556,1727739044946,-151.0,0.0001498,2]
[339607557,1727739044955,-151.0,0.0001498,2]
[339607558,1727739044964,-151.0,0.0001498,2]
[339607559,1727739044974,-151.0,0.0001498,2]
[339607560,1727739044983,-151.0,0.0001498,2]
[339607561,1727739044993,-151.0,0.0001498,2]
[339607562,1727739045002,-151.0,0.0001498,2]
[339607563,1727739045012,-151.0,0.0001498,2]
[339607564,1727739045022,-151.0,0.0001498,2]
[339607565,1727739045031,-151.0,0.0001498,2]
[339607566,1727739045042,-286.983923,0.0001498,2]
[339607567,1727739045053,-151.0,0.0001498,2]
[339607568,1727739045062,-151.0,0.0001498,2]
[339607569,1727739045072,-151.0,0.0001498,2]
[339607570,1727739045081,-151.0,0.0001498,2]
[339607571,1727739045091,-151.0,0.0001498,2]
[339607572,1727739045100,-151.0,0.0001498,2]
[339607573,1727739045110,-151.0,0.0001498,2]
[339607574,1727739045120,-151.0,0.0001498,2]
[339607575,1727739045130,-151.0,0.0001498,2]
[339607576,1727739045139,-151.0,0.0001498,2]
[339607577,1727739045149,-151.0,0.0001498,2]
[339607578,1727739045159,-279.33733,0.0001498,2]